fUST/lending_fUST_20250705
["ID","MTS","AMOUNT","RATE_DAILY","PERIOD"]
[369736877,1751717468551,-806.76,0.00021095,2]
[369736878,1751717468561,-460.0,0.00021095,2]
[369736879,1751717468570,-274.53,0.00021095,2]
[369736880,1751717468580,-460.0,0.00021095,2]
[369736881,1751717468590,-460.0,0.00021095,2]
[369736882,1751717468600,-460.0,0.00021095,2]
[369736883,1751717468610,-460.0,0.00021095,2]
[369736884,1751717468620,-460.0,0.00021095,2]
[369736885,1751717468630,-460.0,0.00021095,2]
[369736886,1751717468639,-460.0,0.00021095,2]
[369736887,1751717468649,-490.06,0.00021095,2]
[369736888,1751717468658,-460.0,0.00021095,2]
[369736889,1751717468668,-460.0,0.00021095,2]
[369736890,1751717468678,-460.0,0.00021095,2]
[369736891,1751717468688,-460.0,0.00021095,2]
[369736892,1751717468697,-8484.21,0.00021095,2]
[369736893,1751717468707,-460.0,0.00021095,2]
[369736894,1751717468717,-460.0,0.00021095,2]
[369736895,1751717468727,-460.0,0.00021095,2]
[369736896,1751717468736,-460.0,0.00021095,2]
[369736897,1751717468746,-460.0,0.00021095,2]
[369736898,1751717468756,-460.0,0.00021095,2]
[369736899,1751717468765,-460.0,0.00021095,2]
[369736900,1751717468776,-460.0,0.00021095,2]
[369736901,1751717468786,-1302.66,0.00021095,2]
[369736902,1751717468796,-460.0,0.00021095,2]
[369736903,1751717468805,-460.0,0.00021095,2]
[369736904,1751717468814,-460.0,0.00021095,2]
[369736905,1751717468824,-460.0,0.00021095,2]
[369736906,1751717468833,-460.0,0.00021095,2]
[369736907,1751717468843,-899.03,0.00021095,2]
[369736908,1751717468852,-460.0,0.00021095,2]
[369736909,1751717468862,-460.0,0.00021095,2]
[369736910,1751717468871,-2958.02,0.00021095,2]
[369736911,1751717469011,-460.0,0.00021095,2]
[369736912,1751717469021,-460.0,0.00021095,2]
[369736913,1751717469031,-500.0,0.00021095,2]
[369736914,1751717469040,-531.52,0.00021095,2]
[369736915,1751717469049,-460.0,0.00021095,2]
[369736916,1751717469059,-1157.79,0.00021095,2]
[369736917,1751717469068,-460.0,0.00021095,2]
[369736918,1751717469078,-690.01,0.00021095,2]
[369736919,1751717469088,-1476.01,0.00021095,2]
[369736920,1751717469097,-460.0,0.00021095,2]
[369736921,1751717469107,-460.0,0.00021095,2]
[369736922,1751717469116,-3194.32,0.00021095,2]
[369736923,1751717469126,-460.0,0.00021095,2]
[369736924,1751717469136,-581.35,0.00021095,2]
[369736925,1751717469146,-603.03,0.00021095,2]
[369736926,1751717469156,-460.0,0.00021095,2]
[369736927,1751717469166,-460.0,0.00021095,2]
[369736928,1751717469175,-460.0,0.00021095,2]
[369736929,1751717469186,-460.0,0.00021095,2]
[369736930,1751717469195,-2867.07,0.00021095,2]
[369736931,1751717469205,-460.0,0.00021095,2]
[369736932,1751717469214,-1796.52,0.00021095,2]
[369736933,1751717469224,-460.0,0.00021095,2]
[369736934,1751717469238,-5436.63,0.00021095,2]
[369736935,1751717469247,-460.0,0.00021095,2]
[369736936,1751717469256,-460.0,0.00021095,2]
[369736937,1751717469267,-1403.53,0.00021095,2]
[369736938,1751717469278,-460.0,0.00021095,2]
[369736939,1751717469288,-460.0,0.00021095,2]
[369736940,1751717469298,-460.0,0.00021095,2]
[369736941,1751717469308,-460.0,0.00021095,2]
[369736942,1751717469317,-460.0,0.00021095,2]
[369736943,1751717469327,-460.0,0.00021095,2]
[369736944,1751717469336,-460.0,0.00021095,2]
[369736945,1751717469346,-2173.26,0.00021095,2]
[369736946,1751717469355,-460.0,0.00021095,2]
[369736947,1751717469366,-460.0,0.00021095,2]
[369736948,1751717469375,-460.0,0.00021095,2]
[369736949,1751717469385,-460.0,0.00021095,2]
[369736950,1751717469395,-460.0,0.00021095,2]
[369736951,1751717469405,-460.0,0.00021095,2]
[369736952,1751717469415,-1048.67,0.00021095,2]
[369736953,1751717469427,-460.0,0.00021095,2]
[369736954,1751717469436,-5025.46,0.00021095,2]
[369736955,1751717469446,-460.0,0.00021095,2]
[369736956,1751717469456,-589.81,0.00021095,2]
[369736957,1751717469465,-460.0,0.00021095,2]
[369736958,1751717469475,-460.0,0.00021095,2]
[369736959,1751717469484,-460.0,0.00021095,2]
[369736960,1751717469494,-460.0,0.00021095,2]
[369736961,1751717469504,-460.0,0.00021095,2]
[369736962,1751717469513,-460.0,0.00021095,2]
[369736963,1751717469524,-460.0,0.00021095,2]
[369736964,1751717469533,-460.0,0.00021095,2]
[369736965,1751717469543,-460.0,0.00021095,2]
[369736966,1751717469552,-460.0,0.00021095,2]
[369736967,1751717469562,-460.0,0.00021095,2]
[369736968,1751717469572,-1196.01,0.00021095,2]
[369736969,1751717469581,-460.0,0.00021095,2]
[369736970,1751717469598,-460.0,0.00021095,2]
[369736971,1751717469607,-1874.38,0.00021095,2]
[369736972,1751717469617,-460.0,0.00021095,2]
[369736973,1751717469627,-460.0,0.00021095,2]
[369736974,1751717469637,-460.0,0.00021095,2]
[369736975,1751717469647,-835.28,0.00021095,2]
[369736976,1751717469657,-460.0,0.00021095,2]
[369736977,1751717469668,-460.0,0.00021095,2]
[369736978,1751717469677,-460.0,0.00021095,2]
[369736979,1751717469687,-460.0,0.00021095,2]
[369736980,1751717469697,-460.0,0.00021095,2]
[369736981,1751717469707,-460.0,0.00021095,2]
[369736982,1751717469717,-460.0,0.00021095,2]
[369736983,1751717469727,-831.58,0.00021095,2]
[369736984,1751717469738,-3874.14,0.00021095,2]
[369736985,1751717469747,-460.0,0.00021095,2]
[369736986,1751717469757,-460.0,0.00021095,2]
[369736987,1751717469767,-460.0,0.00021095,2]
[369736988,1751717469777,-4042.02,0.00021095,2]
[369736989,1751717469786,-460.0,0.00021095,2]
[369736990,1751717469795,-460.0,0.00021095,2]
[369736991,1751717469804,-460.0,0.00021095,2]
[369736992,1751717469813,-268.57821066,0.00021095,2]
[369736993,1751717469823,-460.0,0.00021095,2]
[369736994,1751717469833,-460.0,0.00021095,2]
[369736995,1751717469842,-460.0,0.00021095,2]
[369736996,1751717469852,-460.0,0.00021095,2]
[369736997,1751717469861,-483.94,0.00021095,2]
[369736998,1751717469871,-460.0,0.00021095,2]
[369736999,1751717469880,-798.59,0.00021095,2]
[369737000,1751717469890,-2118.57,0.00021095,2]
[369737001,1751717469899,-982.08,0.00021095,2]
[369737002,1751717469908,-627.75,0.00021095,2]
[369737003,1751717469918,-460.0,0.00021095,2]
[369737004,1751717469928,-3714.76,0.00021095,2]
[369737005,1751717469937,-460.0,0.00021095,2]
[369737006,1751717469947,-460.0,0.00021095,2]
[369737007,1751717469956,-460.0,0.00021095,2]
[369737008,1751717469966,-460.0,0.00021095,2]
[369737009,1751717469977,-460.0,0.00021095,2]
[369737010,1751717469987,-460.0,0.00021095,2]
[369737011,1751717469999,-1962.96,0.00021095,2]
[369737012,1751717470008,-460.0,0.00021095,2]
[369737013,1751717470018,-460.0,0.00021095,2]
[369737014,1751717470028,-460.0,0.00021095,2]
[369737015,1751717470038,-1000.14,0.00021095,2]
[369737016,1751717470047,-460.0,0.00021095,2]
[369737017,1751717470056,-6973.67,0.00021095,2]
[369737018,1751717470066,-460.0,0.00021095,2]
[369737019,1751717470075,-460.0,0.00021095,2]
[369737020,1751717470084,-460.0,0.00021095,2]
[369737021,1751717470093,-460.0,0.00021095,2]
[369737022,1751717470103,-460.0,0.00021095,2]
[369737023,1751717470113,-460.0,0.00021095,2]
[369737024,1751717470123,-886.07,0.00021095,2]
[369737025,1751717470132,-373.84501056,0.00021095,2]
[369737026,1751717470143,-460.0,0.00021095,2]
[369737027,1751717470152,-460.0,0.00021095,2]
[369737028,1751717470162,-866.69,0.00021095,2]
[369737029,1751717470172,-4003.58,0.00021095,2]
[369737030,1751717470181,-500.65,0.00021095,2]
[369737031,1751717470190,-443.39826735,0.00021095,2]
[369737032,1751717470200,-460.0,0.00021095,2]
[369737033,1751717470209,-460.0,0.00021095,2]
[369737034,1751717470218,-460.0,0.00021095,2]
[369737035,1751717470229,-460.0,0.00021095,2]
[369737036,1751717470239,-460.0,0.00021095,2]
[369737037,1751717470248,-8410.03,0.00021095,2]
[369737038,1751717470257,-460.0,0.00021095,2]
[369737039,1751717470267,-460.0,0.00021095,2]
[369737040,1751717470276,-623.12,0.00021095,2]
[369737041,1751717470287,-3495.23,0.00021095,2]
[369737042,1751717470298,-460.0,0.00021095,2]
[369737043,1751717470308,-460.0,0.00021095,2]
[369737044,1751717470320,-585.18,0.00021095,2]
[369737045,1751717470331,-460.0,0.00021095,2]
[369737046,1751717470342,-2963.41,0.00021095,2]
[369737047,1751717470351,-1308.23,0.00021095,2]
[369737048,1751717470361,-520.09,0.00021095,2]
[369737049,1751717470372,-908.26,0.00021095,2]
[369737050,1751717470382,-460.0,0.00021095,2]
[369737051,1751717470391,-460.0,0.00021095,2]
[369737052,1751717470403,-460.0,0.00021095,2]
[369737053,1751717470413,-684.73,0.00021095,2]
[369737054,1751717470423,-473.97,0.00021095,2]
[369737055,1751717470434,-2334.59,0.00021095,2]
[369737056,1751717470443,-460.0,0.00021095,2]
[369737057,1751717470455,-3805.01,0.00021095,2]
[369737058,1751717470464,-460.0,0.00021095,2]
[369737059,1751717470474,-460.0,0.00021095,2]
[369737060,1751717470486,-542.02,0.00021095,2]
[369737061,1751717470495,-460.0,0.00021095,2]
[369737062,1751717470605,-460.0,0.00021095,2]
[369737063,1751717470616,-1373.03,0.00021095,2]
[369737064,1751717470626,-460.0,0.00021095,2]
[369737065,1751717470636,-460.0,0.00021095,2]
[369737066,1751717470646,-460.0,0.00021095,2]
[369737067,1751717470657,-162.135416,0.00021098,2]
[369737068,1751717470667,-3000.0,0.000211,2]
[369737069,1751717470677,-168.0,0.00021101,2]
[369737070,1751717470689,-3964.734372,0.0002111,2]
[369737071,1751717470701,-160.38889,0.00021116,2]
[369737072,1751717470718,-166.49643125,0.00021123,2]
[369737073,1751717470727,-300.0,0.00021142,2]
[369737074,1751717470737,-8144.31447965,0.00021174,2]
[369737075,1751717470746,-500.0,0.00021184,2]
[369737076,1751717470755,-5888.0,0.00021192,2]
[369737077,1751717470765,-151.0,0.00021212,2]
[369737078,1751717470776,-162.135416,0.00021219,2]
[369737079,1751717470785,-328.4,0.00021234,5]
[369737080,1751717470796,-411.0,0.00021249,2]
[369737081,1751717470806,-500.0,0.00021252,2]
[369737082,1751717470817,-500.0,0.00021252,2]
[369737083,1751717470827,-500.0,0.00021252,2]
[369737084,1751717470837,-500.0,0.00021252,2]
[369737085,1751717470847,-500.0,0.00021252,2]
[369737086,1751717470857,-166.49643125,0.0002126,2]
[369737087,1751717470867,-448.06,0.000213,2]
[369737088,1751717470879,-300.0,0.00021308,2]
[369737089,1751717470893,-500.0,0.00021325,2]
[369737090,1751717470903,-500.0,0.00021325,2]
[369737091,1751717470913,-162.135416,0.0002134,2]
[369737092,1751717470923,-151.0,0.00021364,2]
[369737093,1751717470933,-151.0,0.00021364,2]
[369737094,1751717470944,-500.0,0.00021368,10]
[369737095,1751717470954,-500.0,0.00021368,10]
[369737096,1751717470963,-500.0,0.00021368,10]
[369737097,1751717470972,-234.89,0.00021369,2]
[369737098,1751717470982,-203.2,0.00021369,2]
[369737099,1751717470992,-236.60681755,0.00021369,2]
[369737100,1751717471003,-460.0,0.00021369,2]
[369737101,1751717471012,-460.0,0.00021369,2]
[369737102,1751717471022,-532.15,0.00021369,2]
[369737103,1751717471032,-460.0,0.00021369,2]
[369737104,1751717471042,-595.96,0.00021369,2]
[369737105,1751717471051,-460.0,0.00021369,2]
[369737106,1751717471062,-460.0,0.00021369,2]
[369737107,1751717471071,-460.0,0.00021369,2]
[369737108,1751717471081,-460.0,0.00021369,2]
[369737109,1751717471091,-151.0,0.00021369,2]
[369737110,1751717471101,-460.0,0.00021369,2]
[369737111,1751717471110,-460.0,0.00021369,2]
[369737112,1751717471121,-151.0,0.00021369,2]
[369737113,1751717471130,-460.0,0.00021369,2]
[369737114,1751717471142,-460.0,0.00021369,2]
[369737115,1751717471151,-731.51,0.00021369,2]
[369737116,1751717471161,-608.34,0.00021369,2]
[369737117,1751717471171,-624.26,0.00021369,2]
[369737118,1751717471180,-152.72,0.00021369,2]
[369737119,1751717471190,-460.0,0.00021369,2]
[369737120,1751717471200,-778.71,0.00021369,2]
[369737121,1751717471210,-460.0,0.00021369,2]
[369737122,1751717471220,-460.0,0.00021369,2]
[369737123,1751717471232,-460.0,0.00021369,2]
[369737124,1751717471241,-460.0,0.00021369,2]
[369737125,1751717471252,-460.0,0.00021369,2]
[369737126,1751717471264,-460.0,0.00021369,2]
[369737127,1751717471273,-1042.0,0.00021369,2]
[369737128,1751717471283,-460.0,0.00021369,2]
[369737129,1751717471293,-974.86,0.00021369,2]
[369737130,1751717471304,-511.33,0.00021369,2]
[369737131,1751717471314,-460.0,0.00021369,2]
[369737132,1751717471324,-460.0,0.00021369,2]
[369737133,1751717471335,-460.0,0.00021369,2]
[369737134,1751717471346,-460.0,0.00021369,2]
[369737135,1751717471357,-460.0,0.00021369,2]
[369737136,1751717471367,-460.0,0.00021369,2]
[369737137,1751717471379,-260.173685,0.00021369,2]
[369737138,1751717471389,-260.173685,0.00021369,2]
[369737139,1751717471402,-460.0,0.00021369,2]
[369737140,1751717471413,-460.0,0.00021369,2]
[369737141,1751717471422,-895.67,0.00021369,2]
[369737142,1751717471432,-1207.61,0.00021369,2]
[369737143,1751717471442,-158.67,0.00021369,2]
[369737144,1751717471451,-460.0,0.00021369,2]
[369737145,1751717471460,-460.0,0.00021369,2]
[369737146,1751717471471,-460.0,0.00021369,2]
[369737147,1751717471480,-158.76,0.00021369,2]
[369737148,1751717471490,-460.0,0.00021369,2]
[369737149,1751717471500,-460.0,0.00021369,2]
[369737150,1751717471509,-160.6,0.00021369,2]
[369737151,1751717471519,-460.0,0.00021369,2]
[369737152,1751717471529,-460.0,0.00021369,2]
[369737153,1751717471539,-460.0,0.00021369,2]
[369737154,1751717471548,-460.0,0.00021369,2]
[369737155,1751717471558,-460.0,0.00021369,2]
[369737156,1751717471568,-806.76,0.00021369,2]
[369737157,1751717471577,-557.98,0.00021369,2]
[369737158,1751717471587,-460.0,0.00021369,2]
[369737159,1751717471597,-460.0,0.00021369,2]
[369737160,1751717471606,-460.0,0.00021369,2]
[369737161,1751717471615,-460.0,0.00021369,2]
[369737162,1751717471624,-460.0,0.00021369,2]
[369737163,1751717471633,-460.0,0.00021369,2]
[369737164,1751717471642,-151.0,0.00021369,2]
[369737165,1751717471652,-460.0,0.00021369,2]
[369737166,1751717471661,-460.0,0.00021369,2]
[369737167,1751717471671,-460.0,0.00021369,2]
[369737168,1751717471680,-460.0,0.00021369,2]
[369737169,1751717471689,-273.43986,0.00021369,2]
[369737170,1751717471699,-8484.21,0.00021369,2]
[369737171,1751717471709,-460.0,0.00021369,2]
[369737172,1751717471718,-460.0,0.00021369,2]
[369737173,1751717471727,-460.0,0.00021369,2]
[369737174,1751717471737,-460.0,0.00021369,2]
[369737175,1751717471746,-460.0,0.00021369,2]
[369737176,1751717471756,-324.32,0.00021369,2]
[369737177,1751717471765,-460.0,0.00021369,2]
[369737178,1751717471775,-460.0,0.00021369,2]
[369737179,1751717471786,-1302.66,0.00021369,2]
[369737180,1751717471796,-460.0,0.00021369,2]
[369737181,1751717471805,-460.0,0.00021369,2]
[369737182,1751717471815,-460.0,0.00021369,2]
[369737183,1751717471826,-460.0,0.00021369,2]
[369737184,1751717471836,-460.0,0.00021369,2]
[369737185,1751717471846,-899.03,0.00021369,2]
[369737186,1751717471857,-460.0,0.00021369,2]
[369737187,1751717471867,-460.0,0.00021369,2]
[369737188,1751717471877,-2958.02,0.00021369,2]
[369737189,1751717471887,-473.59,0.00021369,2]
[369737190,1751717471897,-500.0,0.00021369,2]
[369737191,1751717471911,-460.0,0.00021369,2]
[369737192,1751717471921,-151.0,0.00021369,2]
[369737193,1751717471930,-1157.79,0.00021369,2]
[369737194,1751717471940,-460.0,0.00021369,2]
[369737195,1751717471949,-690.01,0.00021369,2]
[369737196,1751717471959,-1476.01,0.00021369,2]
[369737197,1751717471968,-460.0,0.00021369,2]
[369737198,1751717471978,-460.0,0.00021369,2]
[369737199,1751717471988,-3194.32,0.00021369,2]
[369737200,1751717471999,-460.0,0.00021369,2]
[369737201,1751717472099,-581.35,0.00021369,2]
[369737202,1751717472111,-603.03,0.00021369,2]
[369737203,1751717472120,-460.0,0.00021369,2]
[369737204,1751717472131,-460.0,0.00021369,2]
[369737205,1751717472142,-460.0,0.00021369,2]
[369737206,1751717472152,-222.202548,0.00021369,2]
[369737207,1751717472164,-2867.07,0.00021369,2]
[369737208,1751717472174,-460.0,0.00021369,2]
[369737209,1751717472184,-222.202548,0.00021369,2]
[369737210,1751717472194,-1796.52,0.00021369,2]
[369737211,1751717472204,-460.0,0.00021369,2]
[369737212,1751717472213,-5436.63,0.00021369,2]
[369737213,1751717472224,-460.0,0.00021369,2]
[369737214,1751717472237,-460.0,0.00021369,2]
[369737215,1751717472246,-460.0,0.00021369,2]
[369737216,1751717472258,-1403.53,0.00021369,2]
[369737217,1751717472268,-460.0,0.00021369,2]
[369737218,1751717472279,-340.0,0.00021369,2]
[369737219,1751717472291,-460.0,0.00021369,2]
[369737220,1751717472302,-460.0,0.00021369,2]
[369737221,1751717472312,-460.0,0.00021369,2]
[369737222,1751717472323,-460.0,0.00021369,2]
[369737223,1751717472333,-2173.26,0.00021369,2]
[369737224,1751717472343,-460.0,0.00021369,2]
[369737225,1751717472353,-460.0,0.00021369,2]
[369737226,1751717472362,-253.15592143,0.00021369,2]
[369737227,1751717472373,-460.0,0.00021369,2]
[369737228,1751717472385,-460.0,0.00021369,2]
[369737229,1751717472395,-1048.67,0.00021369,2]
[369737230,1751717472406,-460.0,0.00021369,2]
[369737231,1751717472416,-5025.46,0.00021369,2]
[369737232,1751717472427,-460.0,0.00021369,2]
[369737233,1751717472437,-460.0,0.00021369,2]
[369737234,1751717472447,-460.0,0.00021369,2]
[369737235,1751717472456,-460.0,0.00021369,2]
[369737236,1751717472466,-460.0,0.00021369,2]
[369737237,1751717472477,-460.0,0.00021369,2]
[369737238,1751717472489,-460.0,0.00021369,2]
[369737239,1751717472499,-460.0,0.00021369,2]
[369737240,1751717472509,-460.0,0.00021369,2]
[369737241,1751717472522,-460.0,0.00021369,2]
[369737242,1751717472532,-460.0,0.00021369,2]
[369737243,1751717472542,-460.0,0.00021369,2]
[369737244,1751717472551,-1196.01,0.00021369,2]
[369737245,1751717472560,-460.0,0.00021369,2]
[369737246,1751717472570,-1874.38,0.00021369,2]
[369737247,1751717472579,-460.0,0.00021369,2]
[369737248,1751717472590,-460.0,0.00021369,2]
[369737249,1751717472599,-460.0,0.00021369,2]
[369737250,1751717472608,-835.28,0.00021369,2]
[369737251,1751717472618,-460.0,0.00021369,2]
[369737252,1751717472627,-460.0,0.00021369,2]
[369737253,1751717472637,-460.0,0.00021369,2]
[369737254,1751717472647,-460.0,0.00021369,2]
[369737255,1751717472657,-460.0,0.00021369,2]
[369737256,1751717472667,-460.0,0.00021369,2]
[369737257,1751717472676,-460.0,0.00021369,2]
[369737258,1751717472686,-831.58,0.00021369,2]
[369737259,1751717472695,-3290.52625485,0.00021369,2]
[369737260,1751717472718,-583.61374515,0.00021369,2]
[369737261,1751717472728,-242.282062,0.00021369,2]
[369737262,1751717472737,-460.0,0.00021369,2]
[369737263,1751717472747,-460.0,0.00021369,2]
[369737264,1751717472756,-460.0,0.00021369,2]
[369737265,1751717472777,-4042.02,0.00021369,2]
[369737266,1751717472796,-242.282062,0.00021369,2]
[369737267,1751717472817,-209.80238873,0.00021369,2]
[369737268,1751717472839,-460.0,0.00021369,2]
[369737269,1751717472860,-460.0,0.00021369,2]
[369737270,1751717472876,-460.0,0.00021369,2]
[369737271,1751717472896,-460.0,0.00021369,2]
[369737272,1751717472911,-460.0,0.00021369,2]
[369737273,1751717472931,-460.0,0.00021369,2]
[369737274,1751717472951,-282.073893,0.00021369,2]
[369737275,1751717472967,-483.94,0.00021369,2]
[369737276,1751717472982,-460.0,0.00021369,2]
[369737277,1751717473000,-798.59,0.00021369,2]
[369737278,1751717473017,-282.073893,0.00021369,2]
[369737279,1751717473032,-2118.57,0.00021369,2]
[369737280,1751717473049,-982.08,0.00021369,2]
[369737281,1751717473065,-627.75,0.00021369,2]
[369737282,1751717473080,-460.0,0.00021369,2]
[369737283,1751717473095,-3714.76,0.00021369,2]
[369737284,1751717473110,-460.0,0.00021369,2]
[369737285,1751717473125,-460.0,0.00021369,2]
[369737286,1751717473141,-460.0,0.00021369,2]
[369737287,1751717473157,-460.0,0.00021369,2]
[369737288,1751717473172,-460.0,0.00021369,2]
[369737289,1751717473187,-460.0,0.00021369,2]
[369737290,1751717473204,-1962.96,0.00021369,2]
[369737291,1751717473218,-460.0,0.00021369,2]
[369737292,1751717473238,-460.0,0.00021369,2]
[369737293,1751717473255,-460.0,0.00021369,2]
[369737294,1751717473264,-1000.14,0.00021369,2]
[369737295,1751717473274,-460.0,0.00021369,2]
[369737296,1751717473284,-6973.67,0.00021369,2]
[369737297,1751717473295,-460.0,0.00021369,2]
[369737298,1751717473305,-460.0,0.00021369,2]
[369737299,1751717473316,-460.0,0.00021369,2]
[369737300,1751717473326,-460.0,0.00021369,2]
[369737301,1751717473336,-460.0,0.00021369,2]
[369737302,1751717473346,-461.51,0.00021369,2]
[369737303,1751717473355,-886.07,0.00021369,2]
[369737304,1751717473367,-460.0,0.00021369,2]
[369737305,1751717473377,-460.0,0.00021369,2]
[369737306,1751717473386,-866.69,0.00021369,2]
[369737307,1751717473395,-4003.58,0.00021369,2]
[369737308,1751717473405,-500.65,0.00021369,2]
[369737309,1751717473415,-460.0,0.00021369,2]
[369737310,1751717473425,-460.0,0.00021369,2]
[369737311,1751717473435,-460.0,0.00021369,2]
[369737312,1751717473445,-460.0,0.00021369,2]
[369737313,1751717473455,-460.0,0.00021369,2]
[369737314,1751717473466,-8410.03,0.00021369,2]
[369737315,1751717473475,-460.0,0.00021369,2]
[369737316,1751717473485,-460.0,0.00021369,2]
[369737317,1751717473496,-623.12,0.00021369,2]
[369737318,1751717473505,-3495.23,0.00021369,2]
[369737319,1751717473515,-460.0,0.00021369,2]
[369737320,1751717473524,-460.0,0.00021369,2]
[369737321,1751717473533,-585.18,0.00021369,2]
[369737322,1751717473543,-460.0,0.00021369,2]
[369737323,1751717473552,-2963.41,0.00021369,2]
[369737324,1751717473562,-520.09,0.00021369,2]
[369737325,1751717473571,-908.26,0.00021369,2]
[369737326,1751717473581,-1308.23,0.00021369,2]
[369737327,1751717473590,-460.0,0.00021369,2]
[369737328,1751717473891,-460.0,0.00021369,2]
[369737329,1751717473909,-460.0,0.00021369,2]
[369737330,1751717473924,-684.73,0.00021369,2]
[369737331,1751717473936,-473.97,0.00021369,2]
[369737332,1751717473946,-2334.59,0.00021369,2]
[369737333,1751717473956,-460.0,0.00021369,2]
[369737334,1751717473966,-3805.01,0.00021369,2]
[369737335,1751717473975,-460.0,0.00021369,2]
[369737336,1751717473984,-460.0,0.00021369,2]
[369737337,1751717473994,-542.02,0.00021369,2]
[369737338,1751717474003,-460.0,0.00021369,2]
[369737339,1751717474013,-460.0,0.00021369,2]
[369737340,1751717474022,-1373.03,0.00021369,2]
[369737341,1751717474032,-183.27,0.00021369,2]
[369737342,1751717474041,-460.0,0.00021369,2]
[369737343,1751717474051,-160.38889,0.00021372,2]
[369737344,1751717474060,-160.388889,0.00021376,2]
[369737345,1751717474070,-411.0,0.00021384,2]
[369737346,1751717474079,-166.49643125,0.00021397,2]
[369737347,1751717474089,-158.340675,0.00021404,2]
[369737348,1751717474098,-2000.0,0.00021416,2]
[369737349,1751717474108,-1223.04511334,0.00021416,2]
[369737350,1751717474118,-328.4,0.00021445,5]
[369737351,1751717474127,-162.135416,0.00021461,2]
[369737352,1751717474136,-151.0,0.00021465,2]
[369737353,1751717474145,-151.0,0.00021465,2]
[369737354,1751717474154,-151.0,0.00021465,2]
[369737355,1751717474163,-151.0,0.00021465,2]
[369737356,1751717474173,-168.0,0.00021488,2]
[369737357,1751717474182,-1000.0,0.00021498,2]
[369737358,1751717474191,-976.90651217,0.00021498,2]
[369737359,1751717474200,-1000.0,0.00021498,2]
[369737360,1751717474210,-1000.0,0.00021498,2]
[369737361,1751717474219,-1109.08371321,0.00021498,2]
[369737362,1751717474230,-1200.0,0.00021498,2]
[369737363,1751717474244,-1000.0,0.00021498,2]
[369737364,1751717474253,-1000.0,0.00021498,2]
[369737365,1751717474262,-500.0,0.00021498,2]
[369737366,1751717474272,-500.0,0.00021498,2]
[369737367,1751717474281,-1000.0,0.00021498,2]
[369737368,1751717474291,-500.30825857,0.00021498,2]
[369737369,1751717474300,-1001.10461529,0.00021498,2]
[369737370,1751717474309,-500.0,0.00021498,2]
[369737371,1751717474318,-1000.0,0.00021498,2]
[369737372,1751717474327,-425.73843759,0.00021498,2]
[369737373,1751717474337,-500.0,0.00021498,2]
[369737374,1751717474346,-1000.0,0.00021498,2]
[369737375,1751717474356,-1000.0,0.00021498,2]
[369737376,1751717474365,-1000.0,0.00021498,2]